[Event "Super United Croatia GCT Rapid 2022"]
[Site "Zagreb"]
[Date "2022.07.22"]
[Round "7.3"]
[White "So, Wesley"]
[Black "Carlsen, Magnus"]
[Result "1/2-1/2"]
[ECO "D13"]
[WhiteElo "2773"]
[BlackElo "2864"]
[Annotator "TA"]
[PlyCount "137"]
[EventDate "2022.07.20"]
[EventType "tourn"]
[EventCountry "CRO"]
[SourceTitle "playchess.com"]
[Source "ChessBase"]
[SourceQuality "1"]
[TimeControl "1500+10"]

{[%evp 15,137,0,16,0,15,10,18,7,12,15,23,14,22,10,9,2,2,3,5,0,0,-20,0,0,-2,-6,-3,0,0,-27,22,-27,-23,-21,-22,-22,-26,-26,-22,-59,-56,-62,-62,-62,-50,-62,-44,-52,-38,-38,-45,-38,-38,-38,-77,-77,-77,-77,-77,-77,-77,-100,-100,-142,-142,-142,-142,-142,-142,-142,-142,-140,-140,-142,-109,-118,-55,-56,0,0,0,0,0,0,0,0,0,0,-8,-66,-72,-82,0,0,0,0,0,0,186,184,220,180,167,0,0,0,0,0,0,0,0,0,0,0,0,0,0,0,0,0,0,0,0,0]} 1. d4 {[%emt 0:00:03]} d5 {[%emt 0:00:04]} 2. c4 {[%emt 0:00:04]} c6 {[%emt 0:00:01]} 3. Nc3 {[%emt 0:00:17]} Nf6 {[%emt 0:00:06]} 4. cxd5 {[%emt 0:00:11]} cxd5 {[%emt 0:00:02]} 5. Bf4 {[%emt 0:00:03]} Nc6 {[%emt 0:00:05]} 6. Nf3 {[%emt 0:00:07]} Nh5 {[%emt 0:00:16]} 7. Bd2 {[%emt 0:00:19]} Nf6 {[%emt 0:00:04]} 8. Bf4 {[%emt 0:00:08]} Nh5 {[%emt 0:00:05] 8...e6 is setting a new trend.} 9. Bd2 {[%emt 0:00:08] D13: Slav Defence: Exchange variation without ...Bf5.} e6 {[%emt 0:00:01]} 10. Rc1 {[%emt 0:00:28]} Nf6 {[%emt 0:03:44]} 11. a3 {[%emt 0:02:42]} Be7 {[%emt 0:00:44]} 12. e3 {[%emt 0:01:56]} O-O {[%emt 0:03:30]} 13. Bd3 {[%emt 0:00:03]} b6 {[%emt 0:00:29]} 14. O-O {[%emt 0:01:29]} Bb7 {[%emt 0:00:01] [#]} 15. b4 $146 {[%emt 0:00:11][%cal Bb2b4,Bb4b5][%mdl 32]} ({Predecessor:} 15. Qe2 Rc8 16. Ba6 Qc7 17. Ne5 Qb8 18. f4 Na5 19. Bd3 Nb3 20. Rc2 Nxd2 21. Qxd2 Rc7 22. Rfc1 Rfc8 23. Qe2 {½-½ (81) Almagro Llamas,P (2477)-Giri,A (2737) Linares 2013}) 15... a5 {[%emt 0:01:52]} 16. b5 {[%emt 0:00:16]} Nb8 {[%emt 0:00:02]} 17. Qb3 {[%emt 0:01:21]} Nbd7 {[%emt 0:00:02]} 18. Rfd1 {[%emt 0:02:46]} Bd6 {[%emt 0:02:27]} 19. Rc2 {[%emt 0:00:35]} Qe7 {[%emt 0:00:12]} 20. Bc1 {[%emt 0:00:24]} Rac8 {[%emt 0:02:08]} 21. Bb2 {[%emt 0:00:16]} e5 {[%emt 0:04:22][%cal Be6e5,Be5e4][%mdl 32]} 22. Bf5 {[%emt 0:00:07]} Rc7 {[%emt 0:00:33]} (22... e4 $142 23. Nd2 g6) 23. Rdc1 {[%emt 0:08:23]} (23. Na4 $142) 23... e4 $1 $11 {[%emt 0:02:20]} 24. Nd2 {[%emt 0:00:08][%cal Oc3e4]} (24. Nxe4 $2 dxe4 25. Rxc7 Bxc7 26. Rxc7 Bd5 $19) 24... g6 {[%emt 0:00:53]} 25. Bh3 {[%emt 0:00:50][%cal Oc3e4]} Rfc8 {[%emt 0:00:13]} 26. a4 {[%emt 0:00:04]} h5 {[%emt 0:00:23]} 27. Ndb1 {[%emt 0:00:20]} Ng4 {[%emt 0:01:31]} 28. Bxg4 {[%emt 0:00:27]} hxg4 {[%emt 0:00:01]} 29. Ba3 {[%emt 0:00:01]} Bb4 {[%emt 0:01:40]} 30. Bxb4 {[%emt 0:00:05]} Qxb4 {[%emt 0:00:04]} (30... axb4 31. Na2 Rxc2 32. Rxc2 $16) 31. Qa2 {[%emt 0:00:29]} Kg7 {[%emt 0:00:08]} 32. g3 {[%emt 0:01:42]} Nf6 {[%emt 0:00:43][%cal Bd7f6,Bf6h7,Bh7g5,Bg5f3][%mdl 32] aiming for ...Nh7.} 33. Ne2 {[%emt 0:00:06]} Rxc2 {[%emt 0:01:10]} 34. Rxc2 {[%emt 0:00:01]} Rxc2 {[%emt 0:00:13]} 35. Qxc2 {[%emt 0:00:01]} Nh7 $1 {[%emt 0:00:08] Threatens to win with ...Qe1+.} (35... Qe1+ $6 36. Kg2 $11) 36. Nec3 {[%emt 0:02:13]} Ng5 $1 {[%emt 0:00:04]} 37. Nd2 {[%emt 0:00:11]} Bc8 {[%emt 0:00:17]} 38. Kg2 {[%emt 0:00:03]} (38. Nxd5 Qxd2 $1 39. Qxd2 Nf3+ 40. Kh1 Nxd2) 38... Nf3 {[%emt 0:00:08] And now ...Ne1+ would win.} 39. Kf1 {[%emt 0:00:54] Prevents Ne1.} Nxh2+ {[%emt 0:00:08]} 40. Ke2 {[%emt 0:00:38]} Be6 {[%emt 0:00:02]} 41. Qb3 {[%emt 0:00:07]} Qe7 {[%emt 0:00:07]} 42. Qb2 {[%emt 0:00:23][%cal Oc3e4]} (42. Nxd5 $2 Qd8 43. Nxe4 Bxd5 $19) 42... Qf6 {[%emt 0:00:15]} 43. Qa3 {[%emt 0:00:03]} Qd8 {[%emt 0:00:18] Prevents Qd6.} ({Of course not} 43... Nf3 $6 44. Qd6 $11) 44. Qb2 {[%emt 0:00:17][%cal Oc3e4]} Nf3 {[%emt 0:00:06]} 45. Ncxe4 {[%emt 0:00:47]} dxe4 {[%emt 0:00:08]} (45... Qh8 $1 $17 {[%cal Rh8h1]} 46. Nd6 Qh1) 46. d5+ $1 $15 {[%emt 0:00:01]} f6 {[%emt 0:00:44]} (46... Kh6 $15 47. dxe6 Qd3+ 48. Kd1 fxe6) 47. dxe6 $11 {[%emt 0:00:01][%mdl 4096] Endgame KQN-KQN} Qd3+ {[%emt 0:00:01]} 48. Kd1 {[%emt 0:00:01]} Qd6 {[%emt 0:00:22]} 49. Qc2 {[%emt 0:00:34]} f5 {[%emt 0:00:02]} 50. Qc3+ {[%emt 0:00:03]} Kh7 {[%emt 0:00:16]} 51. Ke2 {[%emt 0:00:05]} Qxe6 {[%emt 0:00:02]} 52. Qc7+ {[%emt 0:00:03]} ({White should play} 52. Nc4 $11) 52... Kh6 $15 {[%emt 0:00:02]} 53. Qd8 {[%emt 0:00:05] [#] Strongly threatening Qh8+.} g5 {[%emt 0:00:07]} ({Much worse is} 53... Qa2 $6 54. Qh8+ Kg5 55. Qd8+ Kh6 56. Qh8+ Kg5 57. Qd8+ Kh6 $11) (53... Qe5 $1 $17 54. Qf8+ (54. Qxb6 $2 Qa1 $19) 54... Kg5) 54. Qc7 $11 {[%emt 0:00:39] Black must now prevent Qc6.} Ne5 {[%emt 0:00:03] Inhibits Qc6.} 55. Kf1 {[%emt 0:00:11]} Kg6 {[%emt 0:00:19]} 56. Kg2 {[%emt 0:00:09]} f4 $2 {[%emt 0:00:31]} (56... Kf6 $11 {and Black is okay.}) 57. gxf4 $18 {[%emt 0:00:09]} gxf4 {[%emt 0:00:01]} (57... Nf3 $2 58. Nc4 $18) 58. exf4 {[%emt 0:00:10]} Nd3 {[%emt 0:00:02] [#]} 59. Nc4 {[%emt 0:00:12]} (59. Nf1 $1 $18 {[%cal Rf1e3]}) 59... Nxf4+ $1 $11 {[%emt 0:00:20] The position is equal.} 60. Qxf4 {[%emt 0:00:04] Qd6 would kill now.} Qxc4 {[%emt 0:00:01]} 61. Qxg4+ {[%emt 0:00:01] KQ-KQ} Kf6 {[%emt 0:00:01]} 62. Qf4+ {[%emt 0:00:11]} Ke7 {[%emt 0:00:10]} 63. Qh6 {[%emt 0:00:26]} Qd4 {[%emt 0:00:06]} 64. Qc6 {[%emt 0:00:09]} e3 {[%emt 0:00:07]} 65. Qc7+ {[%emt 0:00:09]} Ke6 {[%emt 0:00:04]} 66. Qc8+ {[%emt 0:00:07]} Ke7 {[%emt 0:00:05]} 67. Qc7+ {[%emt 0:00:04]} Ke6 {[%emt 0:00:01]} 68. Qc8+ {[%emt 0:00:01]} Ke7 {[%emt 0:00:01]} 69. Qc7+ {[%emt 0:00:02] White used his chance.  Weighted Error Value: White=0.12 (very precise) /Black=0.14 (very precise)} 1/2-1/2

[Event "Super United Croatia GCT Rapid 2022"]
[Site "Zagreb"]
[Date "2022.07.22"]
[Round "7.4"]
[White "Van Foreest, Jorden"]
[Black "Topalov, Veselin"]
[Result "1-0"]
[ECO "C90"]
[WhiteElo "2678"]
[BlackElo "2728"]
[Annotator "TA"]
[PlyCount "91"]
[EventDate "2022.07.20"]
[EventType "tourn"]
[EventCountry "CRO"]
[SourceTitle "playchess.com"]
[Source "ChessBase"]
[SourceQuality "1"]
[TimeControl "1500+10"]

{[%evp 21,91,14,13,0,10,0,0,2,-4,4,7,-6,-4,-4,0,-34,-39,-37,-29,-16,-16,-16,-16,-19,-14,-25,0,0,12,0,0,-15,-17,-16,0,0,0,0,179,186,179,122,108,107,105,107,112,108,119,32,52,58,289,281,383,378,465,455,479,437,525,402,375,296,324,296,303,266,347,338,298,269]} 1. e4 {[%emt 0:00:03]} e5 {[%emt 0:00:33]} 2. Nf3 {[%emt 0:00:05]} Nc6 {[%emt 0:00:06]} 3. Bb5 {[%emt 0:00:25]} a6 {[%emt 0:00:27]} 4. Ba4 {[%emt 0:00:03]} Nf6 {[%emt 0:00:02]} 5. O-O {[%emt 0:00:09]} Be7 {[%emt 0:00:03]} 6. d3 {[%emt 0:00:15]} b5 {[%emt 0:00:05]} 7. Bb3 {[%emt 0:00:03]} d6 {[%emt 0:00:07]} 8. c3 {[%emt 0:00:46]} O-O {[%emt 0:00:27]} 9. Re1 {[%emt 0:00:26]} Na5 {[%emt 0:00:12]} 10. Bc2 {[%emt 0:00:04]} c5 {[%emt 0:00:02]} 11. Nbd2 {[%emt 0:00:10]} Nc6 {[%emt 0:00:15]} 12. h3 {[%emt 0:00:22][%cal Od3d4] C90: Closed Ruy Lopez with 7...d6: Early deviations.} Re8 {[%emt 0:00:14]} 13. a4 $1 {[%emt 0:00:08][%mdl 4] next axb5 is good for White. is currently scoring better than 13.Nf1.} b4 {[%emt 0:00:32]} 14. Nc4 {[%emt 0:00:26] The position is equal.} Be6 {[%emt 0:02:09]} 15. Bb3 {[%emt 0:01:19]} h6 {[%emt 0:00:44] Prevents Ng5.} 16. Ne3 {[%emt 0:00:16]} Rb8 {[%emt 0:02:21]} 17. Bc4 {[%emt 0:01:05]} Qc8 {[%emt 0:02:02] [#]} 18. Nd5 $146 {[%emt 0:03:30]} ({Predecessor:} 18. Nh2 bxc3 19. bxc3 Na5 20. Bxe6 fxe6 21. Nhg4 Rf8 22. Nxf6+ Bxf6 23. Nc4 Qc7 24. Qg4 {½-½ (75) Fressinet,L (2712)-Sargissian,G (2689) Reykjavik 2015}) 18... Bxd5 {[%emt 0:04:18]} 19. Bxd5 {[%emt 0:02:57]} bxc3 {[%emt 0:01:06]} 20. bxc3 {[%emt 0:00:10]} Nxd5 {[%emt 0:00:02]} 21. exd5 {[%emt 0:00:02]} Na5 {[%emt 0:00:02]} 22. Be3 {[%emt 0:03:28]} c4 {[%emt 0:02:11]} 23. d4 $1 {[%emt 0:00:52]} Nb3 {[%emt 0:03:24] [#] aiming for ...exd4.} 24. Rb1 {[%emt 0:00:34]} e4 {[%emt 0:00:38]} 25. Nd2 {[%emt 0:00:04]} (25. Nh2 {feels hotter.} Qf5 26. Qg4 Qxd5 27. Bxh6 Bf8 28. Nf1) 25... Nxd2 {[%emt 0:00:02]} 26. Rxb8 {[%emt 0:02:04]} Qxb8 {[%emt 0:00:01]} 27. Bxd2 {[%emt 0:00:02]} f5 {[%emt 0:03:42] Prevents Qg4.} 28. Qh5 {[%emt 0:00:29]} Rf8 {[%emt 0:01:25]} 29. Bxh6 {[%emt 0:00:56]} Qa8 $2 {[%emt 0:01:06]} (29... gxh6 $11 30. Qg6+ Kh8 31. Qxh6+ Kg8) 30. Qg6 $18 {[%emt 0:01:45][%csl Gh6][%cal Rg6g7] [#]} Bf6 {[%emt 0:00:09]} 31. f3 {[%emt 0:00:46]} ({Don't play} 31. Qxf5 $6 gxh6 32. Qg6+ (32. Rxe4 Qb7 $11) 32... Bg7 $14) ({White should try} 31. Bf4 $18) 31... Qxd5 $16 {[%emt 0:00:16]} 32. fxe4 $40 {[%emt 0:00:02][%mdl 128] Black is in trouble.} fxe4 {[%emt 0:00:01]} 33. Rxe4 {[%emt 0:00:11][%cal Oe4e7] Strongly threatening Re7!} Qf7 {[%emt 0:00:24] Against Re7} 34. Qg4 {[%emt 0:00:21] 0x0.001f23894404dp-1022s more active pieces.} d5 {[%emt 0:00:08]} (34... Bd8 $2 35. Re6 $18) 35. Re6 {[%emt 0:00:22]} ({White should play} 35. Rf4 $16) 35... Kh7 $1 $14 {[%emt 0:01:02]} 36. Bd2 {[%emt 0:01:04]} a5 $2 {[%emt 0:00:02] This move loses the game for Black.} (36... Bxd4+ $1 $14 37. cxd4 Qf2+ 38. Kh2 Qxd2) 37. Qf5+ $18 {[%emt 0:00:15]} Qg6 {[%emt 0:00:04]} 38. Qxd5 {[%emt 0:00:22]} Rb8 {[%emt 0:00:15]} 39. Bf4 {[%emt 0:00:37]} Rb2 {[%emt 0:00:27]} 40. Kh2 {[%emt 0:00:18]} Rc2 {[%emt 0:00:28]} 41. Qf3 {[%emt 0:00:31] Rb6 is the strong threat.} Qf5 {[%emt 0:00:07]} 42. Re3 {[%emt 0:00:22][%cal Be6e3,Be3f3,Bf3f4][%mdl 32]} Ra2 {[%emt 0:00:07] White has a decisive advantage.} 43. Be5 {[%emt 0:02:17]} Qxf3 {[%emt 0:00:02]} 44. Rxf3 {[%emt 0:00:01]} Bxe5+ {[%emt 0:00:10]} 45. dxe5 {[%emt 0:00:01]} Kg6 {[%emt 0:00:01]} 46. Rf4 {[%emt 0:00:15] Weighted Error Value: White=0.19 (very precise) /Black=0.34} 1-0

[Event "Super United Croatia GCT Rapid 2022"]
[Site "Zagreb"]
[Date "2022.07.22"]
[Round "7.5"]
[White "Saric, Ivan"]
[Black "Nepomniachtchi, Ian"]
[Result "1-0"]
[ECO "B90"]
[WhiteElo "2680"]
[BlackElo "2766"]
[Annotator "TA"]
[PlyCount "71"]
[EventDate "2022.07.20"]
[EventType "tourn"]
[EventCountry "CRO"]
[SourceTitle "playchess.com"]
[Source "ChessBase"]
[SourceQuality "1"]
[TimeControl "1500+10"]

{[%evp 24,71,50,43,43,0,102,84,97,92,167,130,161,155,262,273,219,220,485,510,487,500,562,527,681,394,694,735,722,727,714,717,1202,1079,3393,2552,2177,2506,2595,2589,2356,1200,5057,4134,2352,2223,1856,1557,750,704]} 1. e4 {[%emt 0:00:02]} c5 {[%emt 0:00:01]} 2. Nf3 {[%emt 0:00:01]} d6 {[%emt 0:00:02]} 3. d4 {[%emt 0:00:06]} cxd4 {[%emt 0:00:02]} 4. Nxd4 {[%emt 0:00:02]} Nf6 {[%emt 0:00:04]} 5. Nc3 {[%emt 0:00:01]} a6 {[%emt 0:00:01]} 6. Be3 {[%emt 0:01:04]} e5 {[%emt 0:00:02]} 7. Nb3 {[%emt 0:00:02]} Be6 {[%emt 0:00:12]} 8. f3 {[%emt 0:00:32]} Be7 {[%emt 0:00:03]} 9. Qd2 {[%emt 0:00:01]} Nbd7 {[%emt 0:00:04]} 10. g4 {[%emt 0:00:14]} h6 {[%emt 0:00:02]} 11. O-O-O {[%emt 0:00:15]} b5 {[%emt 0:00:01]} 12. Kb1 {[%emt 0:01:37]} Nb6 {[%emt 0:00:31]} 13. Qf2 {[%emt 0:00:49]} Rb8 {[%emt 0:00:04] B90: Sicilian Najdorf: Unusual White 6th moves, 6 Be3 Ng4 and 6 Be3 e5.} 14. h4 {[%emt 0:01:54]} (14. Nc5 $5 {[%cal Rc5a6]} Bc8 15. h4 $14) 14... Na4 {[%emt 0:00:28] Inhibits Nc5.} (14... Qc7 $11 {keeps the balance.}) 15. Nd5 $16 {[%emt 0:00:45] Black is now going downhill.} Bxd5 {[%emt 0:00:30] White is better.} 16. exd5 {[%emt 0:00:01] [#]} Nd7 $146 {[%emt 0:00:02]} (16... Qc7 $16) ({Predecessor:} 16... Qc7 17. Qd2 Nd7 18. Qa5 Qc8 19. Qb4 Ndb6 20. Na5 Qc7 21. c3 O-O 22. Nc6 Rb7 {1-0 (56) Shahade,G (2454)-Alvarez Marquez,J (2379) Bermuda 2002}) 17. Bd3 $18 {[%emt 0:02:44]} Qc7 {[%emt 0:01:30]} 18. g5 {[%emt 0:00:10]} Ndb6 {[%emt 0:00:09]} (18... Nab6 $16) 19. gxh6 {[%emt 0:00:30]} gxh6 {[%emt 0:00:10] [#]} 20. f4 $1 {[%emt 0:00:57][%cal Bf3f4,Bf4e5][%mdl 32]} Nc4 {[%emt 0:00:11]} (20... Nxd5 21. Bd2 Bf6) 21. Bxc4 {[%emt 0:00:28]} bxc4 {[%emt 0:00:08] [#]} 22. fxe5 {[%emt 0:00:01]} cxb3 {[%emt 0:04:41]} (22... Rf8 23. exd6) 23. axb3 {[%emt 0:00:01]} Nc5 {[%emt 0:00:01]} 24. Rhf1 {[%emt 0:00:16]} Rf8 $2 {[%emt 0:00:24]} (24... Nd7 25. exd6 Bxd6) 25. Bxh6 {[%emt 0:00:32] White is clearly winning.} dxe5 {[%emt 0:00:17]} 26. Bxf8 {[%emt 0:02:40]} Bxf8 {[%emt 0:00:02]} 27. h5 {[%emt 0:00:48]} Rb6 {[%emt 0:06:36]} 28. d6 {[%emt 0:00:03]} Rxd6 {[%emt 0:00:01]} 29. Rxd6 {[%emt 0:00:02]} Bxd6 {[%emt 0:00:01]} 30. h6 {[%emt 0:00:14] Hoping for h7.} e4 {[%emt 0:00:01]} 31. h7 {[%emt 0:01:33]} Be5 {[%emt 0:00:01]} 32. Qg1 {[%emt 0:01:12]} Ne6 {[%emt 0:02:03]} 33. Qg8+ {[%emt 0:00:11]} Nf8 {[%emt 0:00:01]} 34. Rf5 {[%emt 0:00:21]} Bd4 {[%emt 0:00:41]} 35. h8=Q {[%emt 0:01:07]} Bxh8 {[%emt 0:00:03]} 36. Qxh8 {[%emt 0:00:01] Weighted Error Value: White=0.30/Black=1.04} 1-0

[Event "Super United Croatia GCT Rapid 2022"]
[Site "Zagreb"]
[Date "2022.07.22"]
[Round "8.1"]
[White "Vachier-Lagrave, Maxime"]
[Black "Nepomniachtchi, Ian"]
[Result "0-1"]
[ECO "C43"]
[WhiteElo "2760"]
[BlackElo "2766"]
[Annotator "TA"]
[PlyCount "76"]
[EventDate "2022.07.20"]
[EventType "tourn"]
[EventCountry "CRO"]
[SourceTitle "playchess.com"]
[Source "ChessBase"]
[SourceQuality "1"]
[TimeControl "1500+10"]

{[%evp 9,76,10,21,-15,0,0,114,115,170,36,36,14,24,-47,-47,-47,-47,-48,-48,-52,-48,-44,-25,-18,0,0,0,0,-6,-29,-25,-31,-7,-36,-10,-50,-42,-83,-85,-168,-177,-173,-183,-180,-196,-249,-241,-345,-181,-320,-323,-309,-300,-345,-351,-349,-352,-348,-344,-547,-453,-858,-381,-921,-911,-1285,-1264,-29998,-29999]} 1. e4 {[%emt 0:00:02]} e5 {[%emt 0:00:01]} 2. Nf3 {[%emt 0:00:01]} Nf6 {[%emt 0:00:02]} 3. d4 {[%emt 0:00:09]} Nxe4 {[%emt 0:00:02]} 4. dxe5 {[%emt 0:00:02]} d5 {[%emt 0:00:11]} 5. Nbd2 {[%emt 0:00:02]} Qd7 {[%emt 0:00:02]} 6. Nd4 {[%emt 0:00:02] [#] C43: Petroff Defence: 3 d4.} Qe7 $146 {[%emt 0:01:04]} ({Predecessor:} 6... Nxd2 7. Qxd2 c5 8. Nb5 a6 9. Qa5 Nc6 10. Nc7+ Kd8 11. Ne6+ Ke8 12. Nc7+ Kd8 13. Ne6+ {1-0 (35) Ponkratov,P (2605)-Bykov,O (2383) St Petersburg 2018}) 7. N2f3 {[%emt 0:00:44]} c5 {[%emt 0:00:17]} (7... Nd7 $11 {remains equal.}) 8. Nb5 $1 $16 {[%emt 0:02:17] White is better.} ({Don't play} 8. Bb5+ $6 Bd7 9. Bxd7+ (9. Nf5 Qe6 $11) 9... Qxd7 $11) 8... Be6 {[%emt 0:00:04] [#]} (8... a6 $16) 9. Bd3 {[%emt 0:00:12]} (9. c4 $1 $18 {[%cal Rc4d5]} a6 10. cxd5 axb5 11. Bxb5+ (11. dxe6 c4 $16) 11... Bd7 12. Bd3) 9... Qd7 $14 {[%emt 0:00:02]} 10. O-O {[%emt 0:00:30][%cal Oc2c4] c4! is the strong threat.} a6 {[%emt 0:01:02]} 11. Nc3 {[%emt 0:00:12]} (11. Na3 $1 $11) 11... Nxc3 $15 {[%emt 0:00:11]} 12. bxc3 {[%emt 0:00:01]} Nc6 {[%emt 0:00:11]} 13. Re1 {[%emt 0:00:11]} h6 {[%emt 0:00:23]} 14. Nd2 {[%emt 0:01:36]} c4 {[%emt 0:02:04]} 15. Bf1 {[%emt 0:00:30]} Bc5 {[%emt 0:00:03]} 16. Nf3 {[%emt 0:00:26]} Bg4 {[%emt 0:00:23]} 17. Be3 {[%emt 0:00:37]} Bxe3 {[%emt 0:00:06]} 18. Rxe3 {[%emt 0:00:01]} O-O $36 {[%emt 0:00:07][%mdl 2048] White is under pressure.} 19. h3 {[%emt 0:00:03]} Bxf3 {[%emt 0:00:21]} 20. Qxf3 {[%emt 0:00:02]} Qe6 {[%emt 0:00:06]} 21. Rae1 {[%emt 0:01:33]} b5 {[%emt 0:00:16]} 22. h4 {[%emt 0:00:13]} Rad8 {[%emt 0:00:17]} 23. h5 {[%emt 0:00:10]} d4 {[%emt 0:00:11] White is now going downhill.} 24. cxd4 {[%emt 0:00:02]} (24. Re4 $17) 24... Nxd4 $19 {[%emt 0:00:05]} ({Stronger than} 24... Rxd4 25. a4 $15) 25. Qe4 {[%emt 0:00:17]} f5 {[%emt 0:00:18]} 26. exf6 {[%emt 0:00:04]} Qxf6 {[%emt 0:00:10]} 27. f3 {[%emt 0:00:28]} (27. f4 {might work better.}) 27... Kh8 {[%emt 0:00:11] And now ...Nf5 would win.} 28. Rd1 {[%emt 0:00:27]} (28. f4 $142) 28... Nf5 {[%emt 0:02:03]} (28... Qb6 $142 29. Kf2 Nf5 30. Rxd8 Qxd8) 29. Ree1 {[%emt 0:01:22]} (29. Rxd8 $142 Qxd8 30. Re1) 29... Qb6+ {[%emt 0:00:44]} 30. Kh2 {[%emt 0:00:01]} Qb8+ {[%emt 0:00:58]} 31. Kg1 {[%emt 0:01:30]} Rde8 {[%emt 0:01:14]} 32. Qc6 {[%emt 0:00:09] Prevents Qb6+.} Qa7+ {[%emt 0:01:52]} 33. Kh2 {[%emt 0:00:12]} Ne3 {[%emt 0:00:52] Strongly threatening ...Qb8+.} 34. Rd7 {[%emt 0:01:20]} (34. Kh1 {was the only defense.} Qf7 35. Rd7 Qxh5+ 36. Kg1) 34... Ng4+ {[%emt 0:00:56]} 35. Kh3 {[%emt 0:01:46] [#]} (35. fxg4 $142 Qb8+ 36. g3 Rxe1 37. Bg2) 35... Nf2+ {[%emt 0:00:03]} (35... Qb8 $142 $1 {( -> ...Qh2+)} 36. Rd6 (36. Kxg4 Qf4+) 36... Rxe1 37. Kxg4 Qa7) 36. Kg3 {[%emt 0:00:02]} (36. Kh2 Qb8+ 37. g3 Ng4+ 38. fxg4 Rxe1 39. Bg2) 36... Nh1+ {[%emt 0:00:02]} 37. Kh3 {[%emt 0:00:01]} Qb8 {[%emt 0:00:24][%csl Gh1][%cal Rb8g3]} 38. Rxg7 {[%emt 0:00:02]} Nf2+ {[%emt 0:00:01] Weighted Error Value: White=0.94/Black=0.35} 0-1

[Event "Super United Croatia GCT Rapid 2022"]
[Site "Zagreb"]
[Date "2022.07.22"]
[Round "8.2"]
[White "Topalov, Veselin"]
[Black "Saric, Ivan"]
[Result "1-0"]
[ECO "B90"]
[WhiteElo "2728"]
[BlackElo "2680"]
[Annotator "TA"]
[PlyCount "71"]
[EventDate "2022.07.20"]
[EventType "tourn"]
[EventCountry "CRO"]
[SourceTitle "playchess.com"]
[Source "ChessBase"]
[SourceQuality "1"]
[TimeControl "1500+10"]

{[%evp 15,71,6,11,24,18,22,14,20,16,16,21,20,17,11,25,16,20,0,14,0,0,0,0,0,3,-35,-43,-40,-36,-30,-31,-31,0,0,0,0,252,6,142,133,142,132,329,300,355,340,542,503,516,488,768,486,1166,1149,2050,1995,1764,1725]} 1. e4 {[%emt 0:00:02]} c5 {[%emt 0:00:01]} 2. Nf3 {[%emt 0:00:02]} d6 {[%emt 0:00:08]} 3. d4 {[%emt 0:00:20]} cxd4 {[%emt 0:00:01]} 4. Nxd4 {[%emt 0:00:01]} Nf6 {[%emt 0:00:01]} 5. Nc3 {[%emt 0:00:05]} a6 {[%emt 0:00:24]} 6. Be3 {[%emt 0:00:03]} e5 {[%emt 0:00:02]} 7. Nf3 {[%emt 0:00:03]} Be7 {[%emt 0:00:06]} 8. Bc4 {[%emt 0:00:03]} Be6 {[%emt 0:01:21]} 9. Bxe6 {[%emt 0:00:15] B90: Sicilian Najdorf: Unusual White 6th moves, 6 Be3 Ng4 and 6 Be3 e5.} fxe6 {[%emt 0:00:01]} 10. Ng5 {[%emt 0:00:02]} Qd7 {[%emt 0:00:04]} 11. Qf3 {[%emt 0:00:18] With the idea Qh3. The position is equal.} d5 {[%emt 0:00:58]} 12. O-O-O {[%emt 0:03:06][%cal Re4d5]} d4 {[%emt 0:00:01] [#]} 13. Bxd4 $1 {[%emt 0:01:55]} exd4 {[%emt 0:00:01]} 14. e5 {[%emt 0:00:01]} O-O {[%emt 0:00:45] Hoping for ...Nd5.} 15. Qh3 {[%emt 0:02:45]} h6 $1 {[%emt 0:00:01]} 16. exf6 {[%emt 0:04:10]} Rxf6 {[%emt 0:00:51]} 17. Nge4 {[%emt 0:01:51]} Rf5 {[%emt 0:00:30]} 18. Ne2 $40 {[%emt 0:00:23][%mdl 128] Black needs to defend precisely.} Nc6 {[%emt 0:00:05] [#] Threatens to win with ...Qd5.} 19. Kb1 {[%emt 0:00:26] [#]} Rd8 $146 {[%emt 0:01:53]} ({Predecessor:} 19... Qd5 20. N2g3 Rf7 21. Qh5 e5 22. Qe2 Nb4 23. c4 Qa5 24. a3 Nc6 25. Qd2 Qc7 {0-1 (50) Janzelj,T (2316)-Drnovsek,G (2203) Bled 2014}) 20. c3 {[%emt 0:00:22]} Qd5 {[%emt 0:00:39]} 21. f3 {[%emt 0:02:46]} Qb5 {[%emt 0:00:30]} 22. Rhe1 {[%emt 0:04:41][%cal Rc3d4]} (22. Nxd4 Nxd4 23. cxd4 Ba3 $11) 22... Ba3 {[%emt 0:00:46][%csl Ga3][%cal Rb5b2]} 23. b3 {[%emt 0:00:02]} d3 {[%emt 0:02:06]} (23... Qb6 $5 {[%cal Ra6a5]}) 24. N2g3 {[%emt 0:00:25]} d2 {[%emt 0:00:02]} (24... Re5 25. f4 d2 26. Re3 $16) 25. Re3 {[%emt 0:00:01]} (25. Nxf5 Qd3+ 26. Ka1 dxe1=Q) (25. Rxd2 Rxd2) 25... Qe5 $2 {[%emt 0:15:24][%mdl 8192]} (25... Rd3 $11 {and Black has nothing to worry.} 26. Nxf5 (26. Re2 Rxc3) 26... exf5) 26. Nf1 $2 {[%emt 0:02:20] Pair of Knights!} (26. Nxf5 $18 exf5 27. f4 Qxf4 28. Nxd2) 26... Rh5 {[%emt 0:01:45]} (26... Qb5 $11 {remains equal.}) 27. Qg3 $16 {[%emt 0:00:38]} Qf5 {[%emt 0:00:27]} 28. Qc7 {[%emt 0:00:12]} Qg6 {[%emt 0:00:40] A mistake that costs the game.} (28... Qf7 $16 {is a better defense.} 29. Qxf7+ Kxf7) 29. Qxb7 $18 {[%emt 0:00:04] Dancing on a razor blade.} Na5 {[%emt 0:00:14]} 30. Qxa6 {[%emt 0:00:42]} Qxg2 {[%emt 0:00:08]} (30... Rhd5 $142 31. Ka1 (31. Nfxd2 Rxd2 32. Rxd2 Rxd2 $16) 31... Qxg2 32. Qxe6+ (32. b4 Kh7 $18) 32... Kh8) 31. Qxe6+ {[%emt 0:00:40] White is clearly winning.} Kh8 {[%emt 0:00:01]} 32. Kc2 {[%emt 0:00:02][%cal Rd1d2]} Bc1 {[%emt 0:00:20]} (32... Qh3 $142 33. Neg3 Qxe6 34. Rxe6 Rb5 35. Nxd2 Rc8) 33. Qg4 {[%emt 0:00:18]} Rxh2 {[%emt 0:00:09]} (33... Qxg4 $142 34. fxg4 Rh4) 34. Nxh2 {[%emt 0:00:14]} Qxh2 {[%emt 0:00:00]} 35. f4 {[%emt 0:00:24][%cal Oe4g5] Threatening mate with Ng5!} Nc6 {[%emt 0:00:03]} 36. Rh3 {[%emt 0:00:09] Weighted Error Value: White=0.23 (precise) /Black=0.59} 1-0